fUSD/lending_fUSD_20240718
["ID","MTS","AMOUNT","RATE_DAILY","PERIOD"]
[332511478,1721287880175,-150.0,0.00019122,2]
[332511479,1721287880185,-150.0,0.00019123,2]
[332511480,1721287880194,-226.15803789,0.00019125,2]
[332511481,1721287880205,-889.58,0.00019133,2]
[332511482,1721287880215,-150.0,0.00019146,2]
[332511483,1721287880225,-11705.48,0.00019151,2]
[332511484,1721287880234,-151.0,0.00019151,2]
[332511485,1721287880244,-151.0,0.00019151,2]
[332511486,1721287880254,-151.0,0.00019151,2]
[332511487,1721287880263,-151.0,0.00019151,2]
[332511488,1721287880273,-151.0,0.00019151,2]
[332511489,1721287880283,-150.0,0.00019152,2]
[332511490,1721287880293,-150.0,0.00019155,2]
[332511491,1721287880302,-166.66666666,0.00019162,2]
[332511492,1721287880314,-150.0,0.00019168,2]
[332511493,1721287880338,-214.95209125,0.00019168,2]
[332511494,1721287880363,-151.0,0.00019178,2]
[332511495,1721287880373,-151.0,0.00019178,2]
[332511496,1721287880383,-151.0,0.00019178,2]
[332511497,1721287880393,-151.0,0.00019178,2]
[332511498,1721287880403,-151.0,0.00019178,2]
[332511499,1721287880413,-151.0,0.00019178,2]
[332511500,1721287880423,-151.0,0.00019178,2]
[332511501,1721287880432,-192.437715,0.00019178,2]
[332511502,1721287880442,-192.437715,0.00019178,2]
[332511503,1721287880451,-151.0,0.00019178,2]
[332511504,1721287880461,-151.0,0.00019178,2]
[332511505,1721287880471,-151.0,0.00019178,2]
[332511506,1721287880481,-151.0,0.00019178,2]
[332511507,1721287880491,-151.0,0.00019178,2]
[332511508,1721287880501,-151.0,0.00019178,2]
[332511509,1721287880510,-151.0,0.00019178,2]
[332511510,1721287880520,-151.0,0.00019178,2]
[332511511,1721287880530,-151.0,0.00019178,2]
[332511512,1721287880540,-537.004728,0.00019178,2]
[332511513,1721287880549,-537.004728,0.00019178,2]
[332511514,1721287880559,-209.414174,0.00019178,2]
[332511515,1721287880568,-209.414174,0.00019178,2]
[332511516,1721287880580,-151.0,0.00019178,2]
[332511517,1721287880591,-151.0,0.00019178,2]
[332511518,1721287880602,-151.0,0.00019178,2]
[332511519,1721287880615,-151.0,0.00019178,2]
[332511520,1721287880625,-308.076882,0.00019178,2]
[332511521,1721287880635,-308.076882,0.00019178,2]
[332511522,1721287880645,-151.0,0.00019178,2]
[332511523,1721287880654,-180.19445,0.00019178,2]
[332511524,1721287880664,-180.19445,0.00019178,2]
[332511525,1721287880674,-197.93919,0.00019178,2]
[332511526,1721287880684,-151.0,0.00019178,2]
[332511527,1721287880693,-197.93919,0.00019178,2]
[332511528,1721287880703,-151.0,0.00019178,2]
[332511529,1721287880712,-820.070092,0.00019178,2]
[332511530,1721287880721,-820.070092,0.00019178,2]
[332511531,1721287880731,-151.0,0.00019178,2]
[332511532,1721287880741,-227.694673,0.00019178,2]
[332511533,1721287880751,-227.694673,0.00019178,2]
[332511534,1721287880761,-151.0,0.00019178,2]
[332511535,1721287880771,-151.0,0.00019178,2]
[332511536,1721287880780,-236.418104,0.00019178,2]
[332511537,1721287880790,-236.418104,0.00019178,2]
[332511538,1721287880800,-426.912766,0.00019178,2]
[332511539,1721287880810,-151.0,0.00019178,2]
[332511540,1721287880819,-426.912766,0.00019178,2]
[332511541,1721287880831,-225.350112,0.00019178,2]
[332511542,1721287880840,-151.0,0.00019178,2]
[332511543,1721287880850,-225.350112,0.00019178,2]
[332511544,1721287880859,-163.229368,0.00019178,2]
[332511545,1721287880869,-151.0,0.00019178,2]
[332511546,1721287880879,-229.948135,0.00019178,2]
[332511547,1721287880889,-151.0,0.00019178,2]
[332511548,1721287880898,-189.855896,0.00019178,2]
[332511549,1721287880908,-229.948135,0.00019178,2]
[332511550,1721287880917,-189.855896,0.00019178,2]
[332511551,1721287880927,-151.0,0.00019178,2]
[332511552,1721287880936,-256.643151,0.00019178,2]
[332511553,1721287880945,-256.643151,0.00019178,2]
[332511554,1721287880955,-222.603128,0.00019178,2]
[332511555,1721287880965,-395.839856,0.00019178,2]
[332511556,1721287880975,-222.603128,0.00019178,2]
[332511557,1721287880984,-151.0,0.00019178,2]
[332511558,1721287880994,-395.839856,0.00019178,2]
[332511559,1721287881004,-151.0,0.00019178,2]
[332511560,1721287881014,-447.726977,0.00019178,2]
[332511561,1721287881023,-447.726977,0.00019178,2]
[332511562,1721287881032,-151.0,0.00019178,2]
[332511563,1721287881042,-151.0,0.00019178,2]
[332511564,1721287881051,-151.0,0.00019178,2]
[332511565,1721287881060,-10000.0,0.00019178,2]
[332511566,1721287881069,-10000.0,0.00019178,2]
[332511567,1721287881083,-151.0,0.00019178,2]
[332511568,1721287881092,-286.71136,0.00019178,2]
[332511569,1721287881101,-10000.0,0.00019178,2]
[332511570,1721287881111,-151.0,0.00019178,2]
[332511571,1721287881119,-239.040242,0.00019178,2]
[332511572,1721287881129,-184.666729,0.00019178,2]
[332511573,1721287881137,-151.0,0.00019178,2]
[332511574,1721287881147,-151.0,0.00019178,2]
[332511575,1721287881156,-151.0,0.00019178,2]
[332511576,1721287881166,-151.0,0.00019178,2]
[332511577,1721287881175,-151.0,0.00019178,2]
[332511578,1721287881184,-151.0,0.00019178,2]
[332511579,1721287881194,-151.0,0.00019178,2]
[332511580,1721287881203,-151.0,0.00019178,2]
[332511581,1721287881213,-151.0,0.00019178,2]
[332511582,1721287881222,-398.11523,0.00019178,2]
[332511583,1721287881231,-286.194983,0.00019178,2]
[332511584,1721287881241,-246.06,0.00019178,2]
[332511585,1721287881250,-398.11523,0.00019178,2]
[332511586,1721287881259,-286.194983,0.00019178,2]
[332511587,1721287881269,-200.0,0.00019178,2]
[332511588,1721287881278,-200.0,0.00019178,2]
[332511589,1721287881287,-200.0,0.00019178,2]
[332511590,1721287881297,-200.0,0.00019178,2]
[332511591,1721287881305,-200.0,0.00019178,2]
[332511592,1721287881314,-200.0,0.00019178,2]
[332511593,1721287881323,-185.0,0.00019178,2]
[332511594,1721287881335,-200.475284,0.00019178,2]
[332511595,1721287881345,-200.475284,0.00019178,2]
[332511596,1721287881353,-200.475284,0.00019178,2]
[332511597,1721287881362,-200.475284,0.00019178,2]
[332511598,1721287881372,-200.475284,0.00019178,2]
[332511599,1721287881381,-200.475284,0.00019178,2]
[332511600,1721287881390,-200.475284,0.00019178,2]
[332511601,1721287881399,-2095.295319,0.00019178,2]
[332511602,1721287881410,-2095.295319,0.00019178,2]
[332511603,1721287881420,-2095.295319,0.00019178,2]
[332511604,1721287881429,-2095.295319,0.00019178,2]
[332511605,1721287881438,-2095.295319,0.00019178,2]
[332511606,1721287881447,-2095.295319,0.00019178,2]
[332511607,1721287881456,-2095.295319,0.00019178,2]
[332511608,1721287881466,-2095.295319,0.00019178,2]
[332511609,1721287881475,-2095.295319,0.00019178,2]
[332511610,1721287881484,-2095.295319,0.00019178,2]
[332511611,1721287881493,-2095.295319,0.00019178,2]
[332511612,1721287881503,-2095.295319,0.00019178,2]
[332511613,1721287881512,-22646.46,0.00019178,2]
[332511614,1721287881521,-55000.0,0.00019178,2]
[332511615,1721287881531,-3159.2,0.00019178,2]
[332511616,1721287881540,-163.06,0.00019179,2]
[332511617,1721287881549,-445.12807451,0.0001918,2]
[332511618,1721287881558,-150.0,0.00019182,2]
[332511619,1721287881567,-150.0,0.00019182,2]
[332511620,1721287881577,-150.0,0.00019182,2]
[332511621,1721287881586,-150.0,0.00019183,2]
[332511622,1721287881596,-150.0,0.00019184,2]
[332511623,1721287881608,-157.03911617,0.00019195,2]
[332511624,1721287881621,-150.0,0.00019197,2]
[332511625,1721287881631,-150.0,0.00019199,2]
[332511626,1721287881640,-306.49174126,0.00019201,2]
[332511627,1721287881650,-150.0,0.00019202,2]
[332511628,1721287881659,-157.03911617,0.00019206,2]
[332511629,1721287881668,-150.0,0.00019208,2]
[332511630,1721287881677,-165.92612166,0.00019215,2]
[332511631,1721287881686,-150.0,0.00019221,2]
[332511632,1721287881696,-150.0,0.00019221,2]
[332511633,1721287881705,-150.0,0.00019223,2]
[332511634,1721287881715,-157.03911617,0.00019223,2]
[332511635,1721287881725,-150.0,0.00019232,2]
[332511636,1721287881734,-150.0,0.00019236,2]
[332511637,1721287881744,-524.53,0.0001925,2]
[332511638,1721287881754,-166.66666666,0.00019254,2]
[332511639,1721287881764,-371.32697632,0.00019255,2]
[332511640,1721287881774,-150.0,0.00019264,2]
[332511641,1721287881783,-157.03911617,0.00019271,2]
[332511642,1721287881793,-449.17565101,0.00019273,2]
[332511643,1721287881803,-2062.94975587,0.00019278,2]
[332511644,1721287881813,-197.82356527,0.00019288,2]
[332511645,1721287881822,-150.0,0.0001929,2]
[332511646,1721287881835,-267.41464615,0.0001929,2]
[332511647,1721287881845,-166.66666666,0.0001929,2]
[332511648,1721287881854,-150.0,0.00019291,2]
[332511649,1721287881864,-150.0,0.00019293,2]
[332511650,1721287881873,-150.0,0.00019301,2]
[332511651,1721287881883,-166.66666666,0.00019309,2]
[332511652,1721287881892,-150.0,0.00019314,2]
[332511653,1721287881901,-154.98095525,0.00019317,2]
[332511654,1721287881911,-150.0,0.00019324,2]
[332511655,1721287881920,-157.03911617,0.00019334,2]
[332511656,1721287881931,-150.0,0.00019335,2]
[332511657,1721287881941,-550.98546916,0.00019335,2]
[332511658,1721287881952,-166.66666666,0.00019341,2]
[332511659,1721287881962,-150.0,0.00019344,2]
[332511660,1721287881973,-150.0,0.00019363,2]
[332511661,1721287881983,-150.0,0.00019363,2]
[332511662,1721287881992,-371.32697632,0.00019363,2]
[332511663,1721287882002,-150.0,0.00019375,2]
[332511664,1721287882012,-150.0,0.00019379,2]
[332511665,1721287882023,-383.3,0.00019382,2]
[332511666,1721287882032,-169.35308735,0.00019382,2]
[332511667,1721287882042,-150.0,0.00019383,2]
[332511668,1721287882052,-154.98095525,0.00019386,2]
[332511669,1721287882062,-150.0,0.00019387,2]
[332511670,1721287882072,-150.0,0.00019388,2]
[332511671,1721287882084,-166.90315977,0.00019391,2]
[332511672,1721287882093,-823.0,0.000194,2]
[332511673,1721287882103,-151.0,0.00019403,2]
[332511674,1721287882113,-150.20291126,0.00019403,2]
[332511675,1721287882123,-161.84605211,0.0001941,2]
[332511676,1721287882133,-414.54398897,0.00019412,2]
[332511677,1721287882143,-175.02,0.00019427,2]
[332511678,1721287882152,-150.0,0.00019432,2]
[332511679,1721287882162,-151.0,0.00019433,2]
[332511680,1721287882171,-151.0,0.00019433,2]
[332511681,1721287882180,-150.0,0.00019436,2]
[332511682,1721287882190,-150.0,0.00019445,2]
[332511683,1721287882199,-150.0,0.00019447,2]
[332511684,1721287882210,-150.0,0.00019452,2]
[332511685,1721287882220,-150.0,0.0001946,2]
[332511686,1721287882232,-150.0,0.0001946,2]
[332511687,1721287882243,-150.0,0.0001946,2]
[332511688,1721287882256,-166.66666666,0.00019468,2]
[332511689,1721287882266,-150.0,0.00019471,2]
[332511690,1721287882277,-445.12807451,0.00019474,2]
[332511691,1721287882287,-160.7938371,0.00019479,2]
[332511692,1721287882297,-150.0,0.00019482,2]
[332511693,1721287882307,-150.0,0.00019483,2]
[332511694,1721287882317,-150.0,0.00019489,2]
[332511695,1721287882329,-154.98095525,0.00019489,2]
[332511696,1721287882339,-150.0,0.00019493,2]
[332511697,1721287882348,-150.0,0.00019499,2]
[332511698,1721287882357,-2062.94975587,0.000195,2]
[332511699,1721287882370,-150.0,0.00019503,2]
[332511700,1721287882379,-154.98095525,0.00019504,2]
[332511701,1721287882388,-150.0,0.00019506,2]
[332511702,1721287882397,-150.0,0.00019509,2]
[332511703,1721287882408,-150.0,0.00019511,2]
[332511704,1721287882417,-805.34233156,0.0001952,2]
[332511705,1721287882427,-166.66666666,0.00019531,2]
[332511706,1721287882436,-267.41464615,0.00019537,2]
[332511707,1721287882445,-150.0,0.00019551,2]
[332511708,1721287882454,-197.82356527,0.00019565,2]
[332511709,1721287882464,-150.0,0.00019571,2]
[332511710,1721287882474,-550.98546916,0.0001958,2]
[332511711,1721287882483,-445.12807451,0.00019581,2]
[332511712,1721287882492,-150.0,0.00019585,2]
[332511713,1721287882502,-449.17565101,0.00019585,2]
[332511714,1721287882512,-156.65385581,0.00019596,2]
[332511715,1721287882522,-166.66666666,0.00019612,2]
[332511716,1721287882532,-150.0,0.00019618,2]
[332511717,1721287882542,-151.42828929,0.00019623,2]
[332511718,1721287882552,-154.98095525,0.00019628,2]
[332511719,1721287882562,-150.0,0.00019649,2]
[332511720,1721287882571,-150.0,0.00019649,2]
[332511721,1721287882583,-157.03911617,0.0001965,2]
[332511722,1721287882594,-161.35093905,0.00019652,2]
[332511723,1721287882605,-150.0,0.00019655,2]
[332511724,1721287882615,-150.0,0.00019658,2]
[332511725,1721287882625,-934.65578593,0.00019666,2]
[332511726,1721287882634,-151.0,0.00019675,2]
[332511727,1721287882644,-151.0,0.00019675,2]
[332511728,1721287882653,-232.020325,0.00019675,2]
[332511729,1721287882663,-151.0,0.00019675,2]
[332511730,1721287882672,-308.076882,0.00019675,2]
[332511731,1721287882684,-308.076882,0.00019675,2]
[332511732,1721287882694,-180.19445,0.00019675,2]
[332511733,1721287882703,-180.19445,0.00019675,2]
[332511734,1721287882713,-197.93919,0.00019675,2]
[332511735,1721287882722,-151.0,0.00019675,2]
[332511736,1721287882732,-197.93919,0.00019675,2]
[332511737,1721287882741,-151.0,0.00019675,2]
[332511738,1721287882751,-166.66666666,0.00019678,2]
[332511739,1721287882760,-150.0,0.00019681,2]
[332511740,1721287882770,-161.84605211,0.00019681,2]
[332511741,1721287882779,-150.0,0.00019689,2]
[332511742,1721287882789,-449.17565101,0.0001969,2]
[332511743,1721287882799,-150.0,0.00019692,2]
[332511744,1721287882808,-150.0,0.00019699,2]
[332511745,1721287882819,-449.17565101,0.00019713,2]
[332511746,1721287882832,-805.34233156,0.00019715,2]
[332511747,1721287882841,-934.65578593,0.00019717,2]
[332511748,1721287882851,-150.0,0.00019718,2]
[332511749,1721287882861,-150.0,0.00019719,2]
[332511750,1721287882870,-371.32697632,0.00019724,2]
[332511751,1721287882880,-150.0,0.00019726,2]
[332511752,1721287882889,-249.635812,0.00019726,2]
[332511753,1721287882898,-449.17565101,0.00019729,2]
[332511754,1721287882908,-181.72285012,0.00019731,2]
[332511755,1721287882919,-150.0,0.00019744,2]
[332511756,1721287882928,-550.98546916,0.00019755,2]
[332511757,1721287882938,-166.66666666,0.00019767,2]
[332511758,1721287882948,-150.0,0.00019769,2]
[332511759,1721287882957,-445.12807451,0.00019773,2]
[332511760,1721287882968,-150.0,0.00019774,2]
[332511761,1721287882978,-805.34233156,0.00019774,2]
[332511762,1721287882988,-150.0,0.00019777,2]
[332511763,1721287882998,-1000.0,0.00019786,2]
[332511764,1721287883008,-150.0,0.000198,2]
[332511765,1721287883018,-449.17565101,0.00019803,2]
[332511766,1721287883029,-150.0,0.0001981,2]
[332511767,1721287883039,-156.65385581,0.00019813,2]
[332511768,1721287883048,-154.98095525,0.00019822,2]
[332511769,1721287883058,-150.0,0.00019835,2]
[332511770,1721287883068,-150.0,0.00019836,2]
[332511771,1721287883080,-2062.94975587,0.00019836,2]
[332511772,1721287883091,-150.0,0.00019837,2]
[332511773,1721287883308,-154.98095525,0.00019837,2]
[332511774,1721287883329,-150.0,0.00019844,2]
[332511775,1721287883338,-414.54398897,0.00019845,2]
[332511776,1721287883348,-150.0,0.00019846,2]
[332511777,1721287883357,-150.0,0.00019846,2]
[332511778,1721287883366,-979.61,0.00019854,2]
[332511779,1721287883376,-150.0,0.00019863,2]
[332511780,1721287883385,-200.0,0.00019875,2]
[332511781,1721287883395,-150.0,0.00019876,2]
[332511782,1721287883404,-150.0,0.00019882,2]
[332511783,1721287883414,-150.0,0.00019886,2]
[332511784,1721287883423,-151.42828929,0.00019888,2]
[332511785,1721287883432,-979.57546371,0.0001989,2]
[332511786,1721287883441,-161.84605211,0.00019893,2]
[332511787,1721287883452,-805.34233156,0.00019894,2]
[332511788,1721287883461,-227010.03313043,0.000199,2]
[332511789,1721287883473,-155.0,0.000199,2]
[332511790,1721287883484,-115920.64940731,0.000199,2]
[332511791,1721287883493,-151.0,0.000199,2]
[332511792,1721287883503,-298.604763,0.000199,2]
[332511793,1721287883513,-151.0,0.000199,2]
[332511794,1721287883524,-151.0,0.000199,2]
[332511795,1721287883535,-151.0,0.000199,2]
[332511796,1721287883545,-151.0,0.000199,2]
[332511797,1721287883555,-151.0,0.000199,2]
[332511798,1721287883566,-152.288261,0.000199,2]
[332511799,1721287883579,-151.0,0.000199,2]
[332511800,1721287883589,-152.576635,0.000199,2]
[332511801,1721287883600,-151.0,0.000199,2]
[332511802,1721287883616,-151.0,0.000199,2]
[332511803,1721287883625,-151.0,0.000199,2]
[332511804,1721287883636,-151.0,0.000199,2]
[332511805,1721287883646,-192.437715,0.000199,2]
[332511806,1721287883655,-192.437715,0.000199,2]
[332511807,1721287883665,-192.437715,0.000199,2]
[332511808,1721287883674,-192.437715,0.000199,2]
[332511809,1721287883684,-152.207265,0.000199,2]
[332511810,1721287883694,-151.0,0.000199,2]
[332511811,1721287883703,-151.0,0.000199,2]
[332511812,1721287883712,-151.0,0.000199,2]
[332511813,1721287883722,-151.0,0.000199,2]
[332511814,1721287883732,-151.0,0.000199,2]
[332511815,1721287883742,-151.0,0.000199,2]
[332511816,1721287883752,-151.0,0.000199,2]
[332511817,1721287883762,-151.0,0.000199,2]
[332511818,1721287883771,-151.0,0.000199,2]
[332511819,1721287883781,-151.0,0.000199,2]
[332511820,1721287883790,-151.0,0.000199,2]
[332511821,1721287883799,-151.0,0.000199,2]
[332511822,1721287883809,-151.0,0.000199,2]
[332511823,1721287883820,-151.0,0.000199,2]
[332511824,1721287883831,-151.0,0.000199,2]
[332511825,1721287883840,-151.0,0.000199,2]
[332511826,1721287883850,-154.481768,0.000199,2]
[332511827,1721287883859,-537.004728,0.000199,2]
[332511828,1721287883869,-537.004728,0.000199,2]
[332511829,1721287883878,-537.004728,0.000199,2]
[332511830,1721287883887,-537.004724,0.000199,2]
[332511831,1721287883896,-209.414174,0.000199,2]
[332511832,1721287883907,-209.414174,0.000199,2]
[332511833,1721287883916,-209.414174,0.000199,2]
[332511834,1721287883926,-209.414171,0.000199,2]
[332511835,1721287883937,-179.186664,0.000199,2]
[332511836,1721287883947,-167.680144,0.000199,2]
[332511837,1721287883956,-151.0,0.000199,2]
[332511838,1721287883967,-242.051002,0.000199,2]
[332511839,1721287883978,-308.076882,0.000199,2]
[332511840,1721287883988,-308.076882,0.000199,2]
[332511841,1721287883998,-308.076882,0.000199,2]
[332511842,1721287884008,-308.076882,0.000199,2]
[332511843,1721287884018,-153.78831,0.000199,2]
[332511844,1721287884027,-180.19445,0.000199,2]
[332511845,1721287884038,-180.19445,0.000199,2]
[332511846,1721287884048,-180.19445,0.000199,2]
[332511847,1721287884058,-180.19445,0.000199,2]
[332511848,1721287884068,-197.93919,0.000199,2]
[332511849,1721287884081,-197.93919,0.000199,2]
[332511850,1721287884091,-151.0,0.000199,2]
[332511851,1721287884100,-151.0,0.000199,2]
[332511852,1721287884109,-197.93919,0.000199,2]
[332511853,1721287884119,-197.93919,0.000199,2]
[332511854,1721287884128,-214.969558,0.000199,2]
[332511855,1721287884138,-820.070092,0.000199,2]
[332511856,1721287884147,-820.070092,0.000199,2]
[332511857,1721287884157,-820.070092,0.000199,2]
[332511858,1721287884166,-820.070092,0.000199,2]
[332511859,1721287884175,-200.475284,0.000199,2]
[332511860,1721287884185,-200.475284,0.000199,2]
[332511861,1721287884194,-200.475284,0.000199,2]
[332511862,1721287884203,-200.475284,0.000199,2]
[332511863,1721287884213,-227.694673,0.000199,2]
[332511864,1721287884222,-227.694673,0.000199,2]
[332511865,1721287884232,-227.694673,0.000199,2]
[332511866,1721287884241,-227.694673,0.000199,2]
[332511867,1721287884250,-151.0,0.000199,2]
[332511868,1721287884260,-151.0,0.000199,2]
[332511869,1721287884269,-151.0,0.000199,2]
[332511870,1721287884279,-151.0,0.000199,2]
[332511871,1721287884288,-236.418104,0.000199,2]
[332511872,1721287884297,-236.418104,0.000199,2]
[332511873,1721287884307,-236.418104,0.000199,2]
[332511874,1721287884316,-236.418104,0.000199,2]
[332511875,1721287884327,-426.912766,0.000199,2]
[332511876,1721287884336,-426.912766,0.000199,2]
[332511877,1721287884346,-151.0,0.000199,2]
[332511878,1721287884355,-151.0,0.000199,2]
[332511879,1721287884365,-426.912766,0.000199,2]
[332511880,1721287884374,-426.912766,0.000199,2]
[332511881,1721287884384,-225.350112,0.000199,2]
[332511882,1721287884393,-151.0,0.000199,2]
[332511883,1721287884402,-225.350112,0.000199,2]
[332511884,1721287884414,-151.0,0.000199,2]
[332511885,1721287884424,-225.350112,0.000199,2]
[332511886,1721287884433,-225.350112,0.000199,2]
[332511887,1721287884443,-2095.295319,0.000199,2]
[332511888,1721287884452,-2095.295319,0.000199,2]
[332511889,1721287884462,-2095.295319,0.000199,2]
[332511890,1721287884472,-2095.295319,0.000199,2]
[332511891,1721287884483,-151.0,0.000199,2]
[332511892,1721287884494,-151.0,0.000199,2]
[332511893,1721287884504,-229.948135,0.000199,2]
[332511894,1721287884516,-229.948135,0.000199,2]
[332511895,1721287884527,-151.0,0.000199,2]
[332511896,1721287884536,-151.0,0.000199,2]
[332511897,1721287884547,-189.855896,0.000199,2]
[332511898,1721287884559,-189.855896,0.000199,2]
[332511899,1721287884571,-229.948135,0.000199,2]
[332511900,1721287884582,-229.948135,0.000199,2]
[332511901,1721287884591,-189.855896,0.000199,2]
[332511902,1721287884606,-189.855896,0.000199,2]
[332511903,1721287884616,-151.0,0.000199,2]
[332511904,1721287884625,-151.0,0.000199,2]
[332511905,1721287884636,-3100.0,0.000199,7]
[332511906,1721287884646,-256.643151,0.000199,2]
[332511907,1721287884657,-256.643151,0.000199,2]
[332511908,1721287884666,-256.643151,0.000199,2]
[332511909,1721287884676,-256.643151,0.000199,2]
[332511910,1721287884686,-222.603128,0.000199,2]
[332511911,1721287884695,-222.603128,0.000199,2]
[332511912,1721287884705,-395.839856,0.000199,2]
[332511913,1721287884715,-395.839856,0.000199,2]
[332511914,1721287884725,-222.603128,0.000199,2]
[332511915,1721287884735,-222.603128,0.000199,2]
[332511916,1721287884744,-151.0,0.000199,2]
[332511917,1721287884754,-151.0,0.000199,2]
[332511918,1721287884763,-395.839856,0.000199,2]
[332511919,1721287884783,-395.839856,0.000199,2]
[332511920,1721287884794,-151.0,0.000199,2]
[332511921,1721287884806,-151.0,0.000199,2]
[332511922,1721287884816,-447.726977,0.000199,2]
[332511923,1721287884827,-447.726977,0.000199,2]
[332511924,1721287884837,-447.726977,0.000199,2]
[332511925,1721287884847,-447.726977,0.000199,2]
[332511926,1721287884859,-151.0,0.000199,2]
[332511927,1721287884870,-151.0,0.000199,2]
[332511928,1721287884880,-151.0,0.000199,2]
[332511929,1721287884891,-151.0,0.000199,2]
[332511930,1721287884901,-151.0,0.000199,2]
[332511931,1721287884912,-151.0,0.000199,2]
[332511932,1721287884923,-10000.0,0.000199,2]
[332511933,1721287884933,-10000.0,0.000199,2]
[332511934,1721287884944,-10000.0,0.000199,2]
[332511935,1721287884954,-151.0,0.000199,2]
[332511936,1721287884965,-10000.0,0.000199,2]
[332511937,1721287884976,-151.0,0.000199,2]
[332511938,1721287884986,-10000.0,0.000199,2]
[332511939,1721287884997,-10000.0,0.000199,2]
[332511940,1721287885009,-151.0,0.000199,2]
[332511941,1721287885019,-151.0,0.000199,2]
[332511942,1721287885030,-151.0,0.000199,2]
[332511943,1721287885040,-151.0,0.000199,2]
[332511944,1721287885051,-151.0,0.000199,2]
[332511945,1721287885061,-209.11104,0.000199,2]
[332511946,1721287885071,-151.0,0.000199,2]
[332511947,1721287885083,-151.0,0.000199,2]
[332511948,1721287885093,-151.0,0.000199,2]
[332511949,1721287885103,-151.0,0.000199,2]
[332511950,1721287885113,-151.0,0.000199,2]
[332511951,1721287885123,-151.0,0.000199,2]
[332511952,1721287885134,-151.0,0.000199,2]
[332511953,1721287885143,-151.0,0.000199,2]
[332511954,1721287885154,-151.0,0.000199,2]
[332511955,1721287885164,-151.0,0.000199,2]
[332511956,1721287885174,-151.0,0.000199,2]
[332511957,1721287885185,-151.0,0.000199,2]
[332511958,1721287885195,-398.11523,0.000199,2]
[332511959,1721287885205,-398.11523,0.000199,2]
[332511960,1721287885215,-286.194983,0.000199,2]
[332511961,1721287885225,-286.194983,0.000199,2]
[332511962,1721287885235,-398.11523,0.000199,2]
[332511963,1721287885245,-398.11523,0.000199,2]
[332511964,1721287885255,-286.194983,0.000199,2]
[332511965,1721287885264,-286.194983,0.000199,2]
[332511966,1721287885274,-11532.6871584,0.000199,2]
[332511967,1721287885284,-11532.68715839,0.000199,2]
[332511968,1721287885294,-11532.68715839,0.000199,2]
[332511969,1721287885304,-805.34233156,0.00019906,2]
[332511970,1721287885314,-150.0,0.00019909,2]
[332511971,1721287885323,-150.0,0.00019911,2]
[332511972,1721287885335,-550.98546916,0.00019912,2]
[332511973,1721287885346,-150.0,0.00019913,2]
[332511974,1721287885356,-150.0,0.0001992,2]
[332511975,1721287885367,-150.0,0.00019932,2]
[332511976,1721287885377,-150.0,0.00019942,2]
[332511977,1721287885387,-150.0,0.00019946,2]